[Event "Cellavision Cup 2019"]
[Site "Lund"]
[Date "2019.08.02"]
[Round "3.2"]
[White "Olund, Joar"]
[Black "Kryakvin, Dmitry"]
[Result "1/2-1/2"]
[ECO "D12"]
[WhiteElo "2313"]
[BlackElo "2586"]
[Annotator "ChessBase"]
[PlyCount "367"]
[EventDate "2019.08.02"]
[EventType "swiss"]
[EventCountry "SWE"]
[SourceTitle "playchess.com"]
[Source "ChessBase"]
[SourceQuality "1"]
[TimeControl "900+5"]

1. d4 {[%emt 0:00:00]} d5 {[%emt 0:00:00]} 2. Nf3 {[%emt 0:00:00]} Nf6 {[%emt 0:00:00]} 3. c4 {[%emt 0:00:00]} c6 {[%emt 0:00:02]} 4. e3 {[%emt 0:00:04]} Bf5 {[%emt 0:00:05]} 5. Nc3 {[%emt 0:00:02]} e6 {[%emt 0:00:01]} 6. Bd3 {[%emt 0:00:09]} Bg6 {[%emt 0:00:10]} 7. O-O {[%emt 0:00:24]} Bb4 {[%emt 0:00:27]} 8. a3 {[%emt 0:00:28]} Bxc3 {[%emt 0:00:20]} 9. bxc3 {[%emt 0:00:02]} Qa5 {[%emt 0:00:18]} 10. Bxg6 {[%emt 0:01:49]} hxg6 11. Qb3 {[%emt 0:00:26]} Qa6 {[%emt 0:01:37]} 12. Rb1 {[%emt 0:01:19]} b6 {[%emt 0:00:10]} 13. Nd2 {[%emt 0:04:13]} O-O {[%emt 0:00:45]} 14. a4 {[%emt 0:01:04]} Rc8 {[%emt 0:00:33]} 15. Ba3 {[%emt 0:00:16]} Nbd7 {[%emt 0:00:03]} 16. Rfc1 {[%emt 0:00:22]} c5 {[%emt 0:00:19]} 17. cxd5 {[%emt 0:00:48]} exd5 {[%emt 0:01:29]} 18. c4 {[%emt 0:00:12]} cxd4 {[%emt 0:00:41]} 19. exd4 {[%emt 0:00:02]} Qa5 {[%emt 0:01:23]} 20. Qb4 {[%emt 0:02:23]} Qxb4 {[%emt 0:00:55]} 21. Bxb4 {[%emt 0:00:16]} dxc4 {[%emt 0:00:19]} 22. Nxc4 {[%emt 0:00:07]} Nd5 {[%emt 0:00:03]} 23. Bd2 {[%emt 0:00:37]} N7f6 {[%emt 0:00:49]} 24. f3 {[%emt 0:00:35]} Rc7 {[%emt 0:00:19]} 25. Nd6 {[%emt 0:00:45]} Rd7 {[%emt 0:00:24]} 26. Nc4 {[%emt 0:00:20]} Ne7 {[%emt 0:01:17]} 27. Be3 {[%emt 0:00:02]} Nf5 {[%emt 0:00:07]} 28. Bf2 {[%emt 0:00:25]} Nxd4 {[%emt 0:00:13]} 29. Kf1 {[%emt 0:00:04]} Nf5 {[%emt 0:01:12]} 30. a5 {[%emt 0:00:03]} bxa5 {[%emt 0:00:04]} 31. Ra1 {[%emt 0:00:09]} Rc8 {[%emt 0:00:45]} 32. Nxa5 {[%emt 0:00:01]} Rxc1+ {[%emt 0:00:02]} 33. Rxc1 {[%emt 0:00:01]} Nd5 {[%emt 0:00:16]} 34. g4 {[%emt 0:00:14]} Nfe7 {[%emt 0:00:49]} 35. Rb1 {[%emt 0:00:07]} g5 {[%emt 0:00:14]} 36. Rb8+ {[%emt 0:00:04]} Kh7 {[%emt 0:00:01]} 37. Ra8 {[%emt 0:00:01]} Nb6 {[%emt 0:00:20]} 38. Bxb6 {[%emt 0:00:09]} axb6 {[%emt 0:00:01]} 39. Nc4 {[%emt 0:00:02]} Nd5 {[%emt 0:01:02]} 40. Rb8 {[%emt 0:00:04]} Rc7 {[%emt 0:00:07]} 41. Nxb6 {[%emt 0:00:07]} Rc1+ {[%emt 0:00:06]} 42. Kf2 {[%emt 0:00:06]} Rc2+ {[%emt 0:00:02]} 43. Kg1 {[%emt 0:00:04]} Nf4 {[%emt 0:00:08]} 44. Rb7 {[%emt 0:00:05]} Rg2+ {[%emt 0:00:19]} 45. Kf1 {[%emt 0:00:03]} Rb2 {[%emt 0:00:01]} 46. Rb8 {[%emt 0:00:05]} Rxh2 {[%emt 0:00:03]} 47. Nd7 {[%emt 0:00:03]} Rd2 {[%emt 0:00:10]} 48. Ne5 {[%emt 0:00:12]} f6 {[%emt 0:00:05]} 49. Nc4 {[%emt 0:00:03]} Rc2 {[%emt 0:00:16]} 50. Nd6 {[%emt 0:00:05]} Nd3 {[%emt 0:00:08]} 51. Nf5 {[%emt 0:00:05]} Rf2+ {[%emt 0:00:07]} 52. Kg1 {[%emt 0:00:01]} Rxf3 {[%emt 0:00:03]} 53. Rb7 {[%emt 0:00:01]} Kh8 {[%emt 0:00:08]} 54. Rb8+ {[%emt 0:00:03]} Kh7 {[%emt 0:00:01]} 55. Rb7 {[%emt 0:00:00]} Ne5 {[%emt 0:00:07]} 56. Rxg7+ {[%emt 0:00:20]} Kh8 {[%emt 0:00:01]} 57. Re7 {[%emt 0:00:07]} Nxg4 {[%emt 0:00:05]} 58. Nd6 {[%emt 0:00:04]} Kg8 {[%emt 0:00:05]} 59. Kg2 {[%emt 0:00:05]} Rf4 {[%emt 0:00:01]} 60. Kg3 {[%emt 0:00:03]} Nh6 {[%emt 0:00:05]} 61. Kg2 {[%emt 0:00:07]} Nf5 {[%emt 0:00:05]} 62. Re8+ {[%emt 0:00:01]} Kg7 {[%emt 0:00:03]} 63. Nb7 {[%emt 0:00:09]} g4 {[%emt 0:00:05]} 64. Nc5 {[%emt 0:00:02]} Rc4 {[%emt 0:00:10]} 65. Nd7 {[%emt 0:00:07]} Rc2+ {[%emt 0:00:05]} 66. Kg1 {[%emt 0:00:01]} Rc7 {[%emt 0:00:11]} 67. Nb6 {[%emt 0:00:07]} Rc1+ {[%emt 0:00:02]} 68. Kg2 {[%emt 0:00:01]} Rc2+ {[%emt 0:00:01]} 69. Kg1 {[%emt 0:00:02]} Nh4 {[%emt 0:00:04]} 70. Re3 {[%emt 0:00:11]} Nf3+ {[%emt 0:00:03]} 71. Kf1 {[%emt 0:00:01]} Kg6 {[%emt 0:00:05]} 72. Nd5 {[%emt 0:00:08]} Kg5 {[%emt 0:00:08]} 73. Re8 {[%emt 0:00:09]} Nh2+ {[%emt 0:00:12]} 74. Kg1 {[%emt 0:00:06]} Nf3+ 75. Kf1 Kh4 {[%emt 0:00:09]} 76. Nxf6 {[%emt 0:00:07]} Nh2+ {[%emt 0:00:03]} 77. Ke1 {[%emt 0:00:04]} Nf3+ {[%emt 0:00:02]} 78. Kd1 {[%emt 0:00:00]} Rd2+ {[%emt 0:00:04]} 79. Kc1 {[%emt 0:00:01]} Rd4 {[%emt 0:00:11]} 80. Rh8+ {[%emt 0:00:08]} Kg5 {[%emt 0:00:01]} 81. Nxg4 {[%emt 0:00:05]} Kxg4 {[%emt 0:00:00]} 82. Kc2 {[%emt 0:00:04]} Kf4 {[%emt 0:00:04]} 83. Kc3 {[%emt 0:00:01]} Rd7 {[%emt 0:00:01]} 84. Re8 {[%emt 0:00:02]} Ne5 {[%emt 0:00:01]} 85. Kb4 {[%emt 0:00:08]} Rc7 {[%emt 0:00:02]} 86. Kb5 {[%emt 0:00:05]} Ke4 {[%emt 0:00:01]} 87. Rd8 {[%emt 0:00:07]} Rc1 {[%emt 0:00:06]} 88. Rh8 {[%emt 0:00:13]} Nf7 {[%emt 0:00:08]} 89. Rh4+ {[%emt 0:00:04]} Kd5 {[%emt 0:00:03]} 90. Kb4 {[%emt 0:00:04]} Ne5 {[%emt 0:00:03]} 91. Kb3 {[%emt 0:00:02]} Rc7 {[%emt 0:00:07]} 92. Rh5 {[%emt 0:00:03]} Rc8 {[%emt 0:00:18]} 93. Kb4 {[%emt 0:00:04]} Rc1 {[%emt 0:00:09]} 94. Kb3 {[%emt 0:00:02]} Rc6 {[%emt 0:00:04]} 95. Kb4 {[%emt 0:00:02]} Re6 {[%emt 0:00:03]} 96. Kc3 {[%emt 0:00:04]} Kc5 {[%emt 0:00:01]} 97. Rf5 {[%emt 0:00:06]} Re8 {[%emt 0:00:02]} 98. Rh5 {[%emt 0:00:01]} Kd5 {[%emt 0:00:01]} 99. Kb4 {[%emt 0:00:15]} Rg8 {[%emt 0:00:03]} 100. Kc3 {[%emt 0:00:04]} Rg3+ {[%emt 0:00:02]} 101. Kb4 {[%emt 0:00:01]} Kd4 {[%emt 0:00:04]} 102. Rh4+ {[%emt 0:00:02]} Ng4 {[%emt 0:00:01]} 103. Kb5 {[%emt 0:00:02]} Rg1 {[%emt 0:00:14]} 104. Kc6 {[%emt 0:00:04]} Ke5 {[%emt 0:00:03]} 105. Rh8 {[%emt 0:00:10]} Rc1+ {[%emt 0:00:04]} 106. Kb5 {[%emt 0:00:01]} Nf6 {[%emt 0:00:04]} 107. Kb4 {[%emt 0:00:05]} Kd4 {[%emt 0:00:06]} 108. Rh4+ {[%emt 0:00:04]} Ne4 {[%emt 0:00:01]} 109. Kb5 {[%emt 0:00:02]} Rc5+ {[%emt 0:00:04]} 110. Kb6 {[%emt 0:00:15]} Re5 {[%emt 0:00:09]} 111. Kc6 {[%emt 0:00:03]} Rg5 {[%emt 0:00:07]} 112. Rh1 {[%emt 0:00:14]} Rg6+ {[%emt 0:00:05]} 113. Kc7 {[%emt 0:00:09]} Nc3 {[%emt 0:00:02]} 114. Kd7 {[%emt 0:00:04]} Ra6 {[%emt 0:00:09]} 115. Rh4+ {[%emt 0:00:06]} Kc5 {[%emt 0:00:04]} 116. Rh1 {[%emt 0:00:05]} Rd6+ {[%emt 0:00:03]} 117. Ke7 {[%emt 0:00:03]} Nd5+ {[%emt 0:00:02]} 118. Kf7 {[%emt 0:00:00]} Ra6 {[%emt 0:00:17]} 119. Rh2 {[%emt 0:00:08]} Kd4 {[%emt 0:00:04]} 120. Rh4+ {[%emt 0:00:05]} Ke5 {[%emt 0:00:03]} 121. Rh5+ {[%emt 0:00:04]} Ke4 {[%emt 0:00:00]} 122. Rh4+ {[%emt 0:00:11]} Nf4 {[%emt 0:00:01]} 123. Rh1 {[%emt 0:00:01]} Kf5 {[%emt 0:00:06]} 124. Ke7 {[%emt 0:00:02]} Ng6+ {[%emt 0:00:06]} 125. Kd7 {[%emt 0:00:02]} Ne5+ {[%emt 0:00:01]} 126. Kc7 {[%emt 0:00:01]} Ke4 {[%emt 0:00:06]} 127. Rd1 {[%emt 0:00:09]} Rc6+ {[%emt 0:00:06]} 128. Kb7 {[%emt 0:00:01]} Rc3 {[%emt 0:00:01]} 129. Re1+ {[%emt 0:00:06]} Kd5 {[%emt 0:00:04]} 130. Rd1+ {[%emt 0:00:02]} Nd3 {[%emt 0:00:03]} 131. Rh1 {[%emt 0:00:04]} Nc5+ {[%emt 0:00:07]} 132. Kb6 {[%emt 0:00:13]} Rb3+ {[%emt 0:00:03]} 133. Kc7 {[%emt 0:00:01]} Rb7+ {[%emt 0:00:01]} 134. Kc8 {[%emt 0:00:01]} Rg7 {[%emt 0:00:05]} 135. Rd1+ {[%emt 0:00:20]} Kc6 {[%emt 0:00:03]} 136. Kd8 {[%emt 0:00:05]} Ne4 {[%emt 0:00:20]} 137. Ke8 {[%emt 0:00:05]} Ra7 {[%emt 0:00:10]} 138. Kf8 {[%emt 0:00:08]} Nf6 {[%emt 0:00:06]} 139. Rc1+ {[%emt 0:00:04]} Kd6 {[%emt 0:00:11]} 140. Rd1+ {[%emt 0:00:01]} Nd5 {[%emt 0:00:04]} 141. Re1 {[%emt 0:00:01]} Nf4 {[%emt 0:00:06]} 142. Kg8 {[%emt 0:00:12]} Nh5 {[%emt 0:00:10]} 143. Rd1+ {[%emt 0:00:10]} Ke6 {[%emt 0:00:02]} 144. Re1+ {[%emt 0:00:01]} Kf5 {[%emt 0:00:02]} 145. Rf1+ {[%emt 0:00:05]} Nf4 {[%emt 0:00:05]} 146. Kf8 {[%emt 0:00:03]} Ke5 {[%emt 0:00:05]} 147. Ke8 {[%emt 0:00:08]} Nd5 {[%emt 0:00:07]} 148. Re1+ {[%emt 0:00:01]} Kd6 {[%emt 0:00:03]} 149. Kf8 {[%emt 0:00:02]} Nf4 {[%emt 0:00:11]} 150. Kg8 {[%emt 0:00:02]} Nd5 {[%emt 0:00:08]} 151. Kf8 {[%emt 0:00:01]} Rb7 {[%emt 0:00:07]} 152. Kg8 {[%emt 0:00:02]} Nf4 {[%emt 0:00:07]} 153. Kf8 {[%emt 0:00:20]} Ne6+ {[%emt 0:00:04]} 154. Kg8 {[%emt 0:00:02]} Rg7+ {[%emt 0:00:02]} 155. Kh8 {[%emt 0:00:01]} Rg3 {[%emt 0:00:05]} 156. Ra1 {[%emt 0:00:06]} Ke7 {[%emt 0:00:01]} 157. Kh7 {[%emt 0:00:09]} Rg4 {[%emt 0:00:05]} 158. Rf1 {[%emt 0:00:12]} Nf4 {[%emt 0:00:02]} 159. Ra1 {[%emt 0:00:03]} Kf6 {[%emt 0:00:01]} 160. Ra6+ {[%emt 0:00:09]} Ne6 {[%emt 0:00:00]} 161. Ra1 {[%emt 0:00:04]} Ng5+ {[%emt 0:00:13]} 162. Kg8 {[%emt 0:00:02]} Ne6+ {[%emt 0:00:04]} 163. Kh7 {[%emt 0:00:06]} Nf8+ {[%emt 0:00:04]} 164. Kh8 {[%emt 0:00:09]} Ne6 {[%emt 0:00:07]} 165. Rf1+ {[%emt 0:00:04]} Nf4 {[%emt 0:00:01]} 166. Ra1 {[%emt 0:00:02]} Ng6+ {[%emt 0:00:10]} 167. Kg8 {[%emt 0:00:01]} Ne5+ {[%emt 0:00:03]} 168. Kf8 {[%emt 0:00:09]} Rd4 {[%emt 0:00:17]} 169. Ra6+ {[%emt 0:00:05]} Kf5 {[%emt 0:00:02]} 170. Ra1 {[%emt 0:00:03]} Rd7 {[%emt 0:00:03]} 171. Ke8 {[%emt 0:00:05]} Rb7 {[%emt 0:00:03]} 172. Ra6 {[%emt 0:00:04]} Nc4 {[%emt 0:00:02]} 173. Ra1 {[%emt 0:00:03]} Ke6 {[%emt 0:00:01]} 174. Kd8 {[%emt 0:00:07]} Rd7+ {[%emt 0:00:02]} 175. Kc8 {[%emt 0:00:04]} Nd6+ {[%emt 0:00:02]} 176. Kb8 {[%emt 0:00:02]} Kd5 {[%emt 0:00:03]} 177. Rd1+ {[%emt 0:00:05]} Kc6 {[%emt 0:00:01]} 178. Rc1+ {[%emt 0:00:02]} Kb6 {[%emt 0:00:01]} 179. Rb1+ {[%emt 0:00:04]} Nb5 {[%emt 0:00:00]} 180. Kc8 {[%emt 0:00:02]} Rd2 {[%emt 0:00:03]} 181. Rb4 {[%emt 0:00:16]} Rd1 {[%emt 0:00:04]} 182. Rb2 {[%emt 0:00:05]} Rd3 {[%emt 0:00:03]} 183. Rb4 {[%emt 0:00:02]} Rd1 {[%emt 0:00:18]} 184. Rb2 {[%emt 0:00:03]} 1/2-1/2

[Event "Cellavision Cup 2019"]
[Site "Lund"]
[Date "2019.08.02"]
[Round "3.3"]
[White "Kulaots, Kaido"]
[Black "Umudova, Nargiz"]
[Result "1-0"]
[ECO "B10"]
[WhiteElo "2560"]
[BlackElo "2301"]
[Annotator "ChessBase"]
[PlyCount "105"]
[EventDate "2019.08.02"]
[EventType "swiss"]
[EventCountry "SWE"]
[SourceTitle "playchess.com"]
[Source "ChessBase"]
[SourceQuality "1"]
[TimeControl "900+5"]

1. e4 {[%emt 0:00:00]} c6 {[%emt 0:00:00]} 2. Nc3 {[%emt 0:00:06]} d5 {[%emt 0:00:03]} 3. Nf3 {[%emt 0:00:02]} dxe4 {[%emt 0:00:55]} 4. Nxe4 {[%emt 0:00:01]} Nf6 {[%emt 0:00:03]} 5. Qe2 {[%emt 0:00:06]} Nxe4 {[%emt 0:00:09]} 6. Qxe4 {[%emt 0:00:01]} Nd7 {[%emt 0:00:15]} 7. Bc4 {[%emt 0:01:16]} Nf6 {[%emt 0:01:54]} 8. Qe2 {[%emt 0:01:29]} Bf5 {[%emt 0:01:36]} 9. Ne5 {[%emt 0:00:52]} e6 {[%emt 0:00:14]} 10. g4 {[%emt 0:00:59]} Bg6 {[%emt 0:01:10]} 11. d3 {[%emt 0:04:07]} Bd6 {[%emt 0:01:16]} 12. Bd2 {[%emt 0:00:24]} Bxe5 {[%emt 0:01:33]} 13. Qxe5 {[%emt 0:00:02]} Nxg4 {[%emt 0:00:22]} 14. Qxg7 {[%emt 0:00:24]} Qf6 {[%emt 0:01:11]} 15. Qxf6 {[%emt 0:00:04]} Nxf6 {[%emt 0:00:01]} 16. h4 {[%emt 0:00:18]} Rg8 {[%emt 0:00:16]} 17. Rg1 {[%emt 0:00:23]} Kd7 {[%emt 0:00:14]} 18. O-O-O {[%emt 0:00:17]} Bh5 {[%emt 0:00:16]} 19. Rde1 {[%emt 0:00:05]} Rg6 {[%emt 0:00:35]} 20. d4 {[%emt 0:00:33]} Rag8 {[%emt 0:00:42]} 21. Rg5 {[%emt 0:00:19]} h6 {[%emt 0:00:11]} 22. Rxg6 {[%emt 0:00:29]} Rxg6 {[%emt 0:00:01]} 23. Bd3 {[%emt 0:00:02]} Rg2 {[%emt 0:00:23]} 24. Bxh6 {[%emt 0:00:32]} Rxf2 {[%emt 0:00:17]} 25. Rf1 {[%emt 0:00:32]} Rxf1+ {[%emt 0:00:40]} 26. Bxf1 {[%emt 0:00:01]} Ne4 {[%emt 0:00:12]} 27. c3 {[%emt 0:00:34]} f6 {[%emt 0:00:07]} 28. Bg2 {[%emt 0:00:17]} Ng3 {[%emt 0:00:07]} 29. Be3 {[%emt 0:00:12]} Nf5 {[%emt 0:00:42]} 30. Bf2 {[%emt 0:00:02]} Kd6 {[%emt 0:00:05]} 31. Kd2 {[%emt 0:00:07]} a6 {[%emt 0:00:05]} 32. a4 {[%emt 0:00:11]} e5 {[%emt 0:00:06]} 33. Bh3 {[%emt 0:00:14]} Ne7 {[%emt 0:00:06]} 34. Bg3 {[%emt 0:00:23]} Kd5 {[%emt 0:00:12]} 35. dxe5 {[%emt 0:00:18]} fxe5 {[%emt 0:00:01]} 36. a5 {[%emt 0:00:05]} Ke4 {[%emt 0:00:13]} 37. Bg2+ {[%emt 0:00:32]} Kf5 {[%emt 0:00:06]} 38. c4 {[%emt 0:00:33]} Ng6 {[%emt 0:00:09]} 39. Ke3 {[%emt 0:00:24]} Nf4 {[%emt 0:00:05]} 40. Be4+ {[%emt 0:00:12]} Kg4 {[%emt 0:00:02]} 41. Be1 {[%emt 0:00:04]} Kh3 {[%emt 0:00:21]} 42. Bf5+ {[%emt 0:00:15]} Bg4 {[%emt 0:00:05]} 43. Bxg4+ {[%emt 0:00:02]} Kxg4 {[%emt 0:00:01]} 44. Ke4 {[%emt 0:00:03]} Ng2 {[%emt 0:00:05]} 45. Bc3 {[%emt 0:00:12]} Nxh4 {[%emt 0:00:14]} 46. Kxe5 {[%emt 0:00:01]} Nf5 {[%emt 0:00:06]} 47. Ke6 {[%emt 0:00:08]} Kf4 {[%emt 0:00:20]} 48. Kd7 {[%emt 0:00:02]} Ke4 {[%emt 0:00:11]} 49. Kc7 {[%emt 0:00:04]} Kd3 {[%emt 0:00:47]} 50. Kxb7 {[%emt 0:00:02]} Kxc4 {[%emt 0:00:08]} 51. Kxa6 {[%emt 0:00:03]} Nd6 {[%emt 0:00:11]} 52. Kb6 {[%emt 0:00:07]} Ne4 {[%emt 0:00:07]} 53. a6 {[%emt 0:00:06]} 1-0

[Event "Cellavision Cup 2019"]
[Site "Lund"]
[Date "2019.08.02"]
[Round "3.4"]
[White "Kucuksari, Kaan"]
[Black "Burg, Twan"]
[Result "0-1"]
[ECO "A46"]
[WhiteElo "2310"]
[BlackElo "2526"]
[Annotator "ChessBase"]
[PlyCount "72"]
[EventDate "2019.08.02"]
[EventType "swiss"]
[EventCountry "SWE"]
[SourceTitle "playchess.com"]
[Source "ChessBase"]
[SourceQuality "1"]
[TimeControl "900+5"]

1. d4 {[%emt 0:00:00]} Nf6 {[%emt 0:00:00]} 2. Nf3 {[%emt 0:00:00]} d5 {[%emt 0:00:00]} 3. c4 {[%emt 0:00:00]} e6 {[%emt 0:00:01]} 4. g3 {[%emt 0:00:00]} Bb4+ {[%emt 0:00:01]} 5. Bd2 {[%emt 0:00:00]} Be7 {[%emt 0:00:01]} 6. Bg2 {[%emt 0:00:01]} c6 {[%emt 0:00:01]} 7. Qc2 {[%emt 0:00:08]} O-O {[%emt 0:00:03]} 8. O-O {[%emt 0:00:02]} Nbd7 {[%emt 0:00:07]} 9. Rd1 {[%emt 0:00:03]} b6 {[%emt 0:00:06]} 10. Bf4 {[%emt 0:00:52]} Ba6 {[%emt 0:00:03]} 11. Nbd2 {[%emt 0:00:46]} Nh5 {[%emt 0:00:03]} 12. Be3 {[%emt 0:00:01]} f5 {[%emt 0:00:20]} 13. cxd5 {[%emt 0:00:40]} cxd5 {[%emt 0:00:15]} 14. Qc6 {[%emt 0:00:53]} Kf7 {[%emt 0:01:04]} 15. Ng5+ {[%emt 0:01:22]} Bxg5 {[%emt 0:00:07]} 16. Bxg5 {[%emt 0:00:01]} Qxg5 {[%emt 0:01:12]} 17. Qxd7+ {[%emt 0:00:02]} Qe7 {[%emt 0:00:06]} 18. Qa4 {[%emt 0:00:08]} Bb7 {[%emt 0:01:09]} 19. Rac1 {[%emt 0:00:19]} Nf6 {[%emt 0:00:14]} 20. Nf3 {[%emt 0:00:29]} Kg8 {[%emt 0:00:14]} 21. Ne5 {[%emt 0:00:27]} Ng4 {[%emt 0:00:17]} 22. Nd3 {[%emt 0:02:37]} Nf6 {[%emt 0:00:08]} 23. Rc2 {[%emt 0:00:19]} Rfc8 {[%emt 0:00:17]} 24. Rxc8+ {[%emt 0:00:30]} Bxc8 {[%emt 0:00:01]} 25. Rc1 {[%emt 0:00:33]} Bd7 {[%emt 0:00:14]} 26. Qa6 {[%emt 0:00:42]} Be8 {[%emt 0:02:10]} 27. a4 {[%emt 0:01:34]} Rb8 {[%emt 0:00:35]} 28. a5 {[%emt 0:01:14]} Ne4 {[%emt 0:00:59]} 29. axb6 {[%emt 0:00:42]} Rxb6 {[%emt 0:00:11]} 30. Qc8 {[%emt 0:00:05]} Nd6 {[%emt 0:00:22]} 31. Qa8 {[%emt 0:02:17]} Nc4 {[%emt 0:01:28]} 32. Ra1 {[%emt 0:00:33]} a5 {[%emt 0:00:56]} 33. h4 {[%emt 0:00:14]} h6 {[%emt 0:00:08]} 34. Nf4 {[%emt 0:00:02]} Kh7 {[%emt 0:00:17]} 35. Nd3 {[%emt 0:00:10]} Bc6 {[%emt 0:00:18]} 36. Qc8 {[%emt 0:00:03]} Nd6 {[%emt 0:00:02]} 0-1

[Event "Cellavision Cup 2019"]
[Site "Lund"]
[Date "2019.08.02"]
[Round "3.5"]
[White "Marin, Mihail"]
[Black "Jakobsen, Peter"]
[Result "1-0"]
[ECO "A03"]
[WhiteElo "2525"]
[BlackElo "2250"]
[Annotator "ChessBase"]
[PlyCount "82"]
[EventDate "2019.08.02"]
[EventType "swiss"]
[EventCountry "SWE"]
[SourceTitle "playchess.com"]
[Source "ChessBase"]
[SourceQuality "1"]
[TimeControl "900+5"]

1. f4 {[%emt 0:00:00]} d5 {[%emt 0:00:00]} 2. Nf3 {[%emt 0:00:00]} Bg4 {[%emt 0:00:01]} 3. e3 {[%emt 0:00:01]} Nd7 {[%emt 0:00:04]} 4. Be2 {[%emt 0:00:08]} c6 {[%emt 0:00:06]} 5. O-O {[%emt 0:00:03]} Bxf3 {[%emt 0:00:27]} 6. Bxf3 {[%emt 0:00:08]} e5 {[%emt 0:00:01]} 7. d4 {[%emt 0:00:05]} e4 {[%emt 0:01:10]} 8. Be2 {[%emt 0:00:02]} Ngf6 {[%emt 0:00:28]} 9. b3 {[%emt 0:00:04]} Be7 {[%emt 0:00:27]} 10. c4 {[%emt 0:00:02]} O-O {[%emt 0:00:25]} 11. Nc3 {[%emt 0:00:03]} Rc8 {[%emt 0:02:32]} 12. g4 {[%emt 0:00:22]} Nb6 {[%emt 0:01:47]} 13. c5 {[%emt 0:00:12]} Nbd7 {[%emt 0:00:01]} 14. b4 {[%emt 0:00:04]} b6 {[%emt 0:00:24]} 15. Bd2 {[%emt 0:00:11]} Ne8 {[%emt 0:00:22]} 16. Kh1 {[%emt 0:01:03]} f5 {[%emt 0:00:06]} 17. gxf5 {[%emt 0:00:17]} Rxf5 {[%emt 0:00:02]} 18. Bg4 {[%emt 0:00:06]} Rf8 {[%emt 0:00:46]} 19. Be1 {[%emt 0:01:09]} Rc7 {[%emt 0:00:10]} 20. Be6+ {[%emt 0:00:33]} Kh8 {[%emt 0:00:01]} 21. f5 {[%emt 0:00:03]} Bh4 {[%emt 0:00:21]} 22. Qg4 {[%emt 0:00:26]} Bxe1 {[%emt 0:00:16]} 23. Raxe1 {[%emt 0:00:03]} Ndf6 {[%emt 0:00:15]} 24. Qf4 {[%emt 0:00:23]} Re7 {[%emt 0:00:26]} 25. b5 {[%emt 0:01:06]} Nc7 {[%emt 0:00:18]} 26. bxc6 {[%emt 0:02:06]} Nxe6 {[%emt 0:00:47]} 27. fxe6 {[%emt 0:00:02]} bxc5 {[%emt 0:00:40]} 28. c7 {[%emt 0:01:04]} Qxc7 {[%emt 0:01:09]} 29. Qxc7 {[%emt 0:00:13]} Rxc7 {[%emt 0:00:01]} 30. Nxd5 {[%emt 0:00:02]} Rcc8 {[%emt 0:00:31]} 31. Nxf6 {[%emt 0:00:15]} Rxf6 {[%emt 0:00:10]} 32. Rxf6 {[%emt 0:00:37]} gxf6 {[%emt 0:00:01]} 33. d5 {[%emt 0:00:06]} Kg7 {[%emt 0:00:12]} 34. d6 {[%emt 0:00:14]} Kf8 {[%emt 0:00:07]} 35. Rf1 {[%emt 0:00:11]} c4 {[%emt 0:00:12]} 36. Rxf6+ {[%emt 0:00:05]} Kg7 {[%emt 0:00:06]} 37. Rf7+ {[%emt 0:00:11]} Kg6 {[%emt 0:00:02]} 38. Rc7 {[%emt 0:00:05]} Rb8 {[%emt 0:00:12]} 39. Rxc4 {[%emt 0:00:38]} Kf5 {[%emt 0:00:01]} 40. e7 {[%emt 0:00:13]} Ke6 {[%emt 0:00:01]} 41. Rxe4+ Kd5 1-0

[Event "Cellavision Cup 2019"]
[Site "Lund"]
[Date "2019.08.02"]
[Round "3.6"]
[White "Silseth, Simon"]
[Black "Blomqvist, Erik"]
[Result "1-0"]
[ECO "B23"]
[WhiteElo "2264"]
[BlackElo "2492"]
[Annotator "ChessBase"]
[PlyCount "86"]
[EventDate "2019.08.02"]
[EventType "swiss"]
[EventCountry "SWE"]
[SourceTitle "playchess.com"]
[Source "ChessBase"]
[SourceQuality "1"]
[TimeControl "900+5"]

1. e4 {[%emt 0:00:00]} c5 {[%emt 0:00:00]} 2. Nc3 {[%emt 0:00:01]} a6 {[%emt 0:00:00]} 3. g3 {[%emt 0:00:04]} b5 {[%emt 0:00:00]} 4. Bg2 {[%emt 0:00:02]} Bb7 {[%emt 0:00:02]} 5. d3 {[%emt 0:00:05]} e6 {[%emt 0:00:02]} 6. Nf3 {[%emt 0:00:04]} d6 {[%emt 0:00:05]} 7. O-O {[%emt 0:00:06]} Nf6 {[%emt 0:00:04]} 8. a4 {[%emt 0:00:11]} b4 {[%emt 0:00:05]} 9. Ne2 {[%emt 0:00:03]} Nbd7 {[%emt 0:01:36]} 10. b3 {[%emt 0:00:05]} g6 {[%emt 0:00:17]} 11. Bb2 {[%emt 0:00:03]} Bg7 {[%emt 0:00:02]} 12. Nd2 {[%emt 0:00:23]} Qc7 {[%emt 0:00:56]} 13. Nc4 {[%emt 0:00:08]} O-O {[%emt 0:00:14]} 14. Nxd6 {[%emt 0:03:54]} Qxd6 {[%emt 0:00:16]} 15. e5 {[%emt 0:00:02]} Qc7 {[%emt 0:00:21]} 16. exf6 {[%emt 0:00:08]} Bxf6 {[%emt 0:00:43]} 17. Bxf6 {[%emt 0:00:37]} Nxf6 {[%emt 0:00:29]} 18. Nf4 {[%emt 0:00:22]} e5 {[%emt 0:00:12]} 19. Bxb7 {[%emt 0:00:08]} Qxb7 {[%emt 0:00:02]} 20. Ng2 {[%emt 0:00:04]} Rad8 {[%emt 0:00:42]} 21. Qe2 {[%emt 0:00:56]} Rfe8 {[%emt 0:00:31]} 22. f3 {[%emt 0:00:36]} Nd5 {[%emt 0:00:08]} 23. Ne3 {[%emt 0:00:13]} Nc3 {[%emt 0:00:02]} 24. Qf2 {[%emt 0:00:13]} h5 {[%emt 0:00:20]} 25. Nc4 {[%emt 0:00:05]} Qc7 {[%emt 0:00:44]} 26. Rae1 {[%emt 0:00:29]} Re7 {[%emt 0:01:29]} 27. Qe3 {[%emt 0:00:10]} Rde8 {[%emt 0:01:13]} 28. Qg5 {[%emt 0:00:20]} Kg7 {[%emt 0:00:29]} 29. Ne3 {[%emt 0:01:07]} Qd7 {[%emt 0:01:17]} 30. Nc4 {[%emt 0:00:35]} f6 {[%emt 0:00:44]} 31. Qe3 {[%emt 0:00:02]} Qd5 {[%emt 0:00:31]} 32. Rf2 {[%emt 0:00:39]} Re6 {[%emt 0:00:14]} 33. Rg2 {[%emt 0:00:13]} f5 {[%emt 0:00:30]} 34. Qg5 {[%emt 0:00:20]} Qxf3 {[%emt 0:00:20]} 35. Rf2 {[%emt 0:00:20]} Qg4 {[%emt 0:00:09]} 36. Qe3 {[%emt 0:00:07]} Qd4 {[%emt 0:00:18]} 37. Qg5 {[%emt 0:00:32]} e4 {[%emt 0:00:57]} 38. Ne3 {[%emt 0:00:24]} Rf8 {[%emt 0:00:31]} 39. Rf4 {[%emt 0:02:27]} Nd5 {[%emt 0:00:37]} 40. Rh4 {[%emt 0:00:31]} Nxe3 {[%emt 0:00:12]} 41. Rxe3 {[%emt 0:00:19]} Qd8 {[%emt 0:00:38]} 42. Rxh5 {[%emt 0:00:10]} Qxg5 {[%emt 0:00:10]} 43. Rxg5 {[%emt 0:00:01]} Kf6 1-0